fUST/lending_fUST_20250819
["ID","MTS","AMOUNT","RATE_DAILY","PERIOD"]
[380193231,1755603053563,-576.12667986,0.00019726,2]
[380193232,1755603053572,-480.0,0.00019726,2]
[380193233,1755603053581,-480.0,0.00019726,2]
[380193234,1755603053590,-801.85,0.00019726,2]
[380193235,1755603053600,-480.0,0.00019726,2]
[380193236,1755603053609,-480.0,0.00019726,2]
[380193237,1755603053618,-480.0,0.00019726,2]
[380193238,1755603053627,-480.0,0.00019726,2]
[380193239,1755603053635,-221.949009,0.00019726,2]
[380193240,1755603053644,-151.0,0.00019726,2]
[380193241,1755603053653,-830.74,0.00019726,2]
[380193242,1755603053662,-480.0,0.00019726,2]
[380193243,1755603053671,-480.0,0.00019726,2]
[380193244,1755603053680,-151.0,0.00019726,2]
[380193245,1755603053689,-151.0,0.00019726,2]
[380193246,1755603053697,-578.4845611,0.00019726,2]
[380193247,1755603053706,-2777.45,0.00019726,2]
[380193248,1755603053715,-466.48896139,0.00019726,2]
[380193249,1755603053724,-480.0,0.00019726,2]
[380193250,1755603053733,-480.0,0.00019726,2]
[380193251,1755603053741,-573.54,0.00019726,2]
[380193252,1755603053750,-480.0,0.00019726,2]
[380193253,1755603053759,-480.0,0.00019726,2]
[380193254,1755603053768,-480.0,0.00019726,2]
[380193255,1755603053777,-480.0,0.00019726,2]
[380193256,1755603053786,-480.0,0.00019726,2]
[380193257,1755603053795,-480.0,0.00019726,2]
[380193258,1755603053804,-480.0,0.00019726,2]
[380193259,1755603053813,-480.0,0.00019726,2]
[380193260,1755603053824,-568.21,0.00019726,2]
[380193261,1755603053834,-480.0,0.00019726,2]
[380193262,1755603053843,-480.0,0.00019726,2]
[380193263,1755603053852,-480.0,0.00019726,2]
[380193264,1755603053862,-666.81,0.00019726,2]
[380193265,1755603053871,-480.0,0.00019726,2]
[380193266,1755603053880,-1625.38,0.00019726,2]
[380193267,1755603053888,-887.75,0.00019726,2]
[380193268,1755603053898,-480.0,0.00019726,2]
[380193269,1755603053909,-480.0,0.00019726,2]
[380193270,1755603053919,-480.0,0.00019726,2]
[380193271,1755603053928,-480.0,0.00019726,2]
[380193272,1755603053936,-480.0,0.00019726,2]
[380193273,1755603053945,-480.0,0.00019726,2]
[380193274,1755603053955,-481.67989735,0.00019726,2]
[380193275,1755603053963,-480.0,0.00019726,2]
[380193276,1755603053972,-298.45183053,0.00019726,2]
[380193277,1755603053981,-480.0,0.00019726,2]
[380193278,1755603053990,-371.94054313,0.00019726,2]
[380193279,1755603053999,-1370.0,0.00019726,2]
[380193280,1755603054008,-626.74,0.00019726,2]
[380193281,1755603054017,-480.0,0.00019726,2]
[380193282,1755603054026,-480.0,0.00019726,2]
[380193283,1755603054034,-480.0,0.00019726,2]
[380193284,1755603054043,-480.0,0.00019726,2]
[380193285,1755603054052,-151.0,0.00019726,2]
[380193286,1755603054061,-1004.43,0.00019726,2]
[380193287,1755603054070,-480.0,0.00019726,2]
[380193288,1755603054079,-926.73,0.00019726,2]
[380193289,1755603054088,-815.71,0.00019726,2]
[380193290,1755603054097,-480.0,0.00019726,2]
[380193291,1755603054106,-1388.45,0.00019726,2]
[380193292,1755603054115,-480.0,0.00019726,2]
[380193293,1755603054124,-480.0,0.00019726,2]
[380193294,1755603054133,-790.44,0.00019726,2]
[380193295,1755603054142,-356.17181539,0.00019726,2]
[380193296,1755603054151,-527.35488762,0.00019726,2]
[380193297,1755603054160,-480.0,0.00019726,2]
[380193298,1755603054169,-480.0,0.00019726,2]
[380193299,1755603054178,-480.0,0.00019726,2]
[380193300,1755603054187,-151.0,0.00019726,2]
[380193301,1755603054196,-151.0,0.00019726,2]
[380193302,1755603054205,-480.0,0.00019726,2]
[380193303,1755603054214,-480.0,0.00019726,2]
[380193304,1755603054223,-151.0,0.00019726,2]
[380193305,1755603054232,-1501.03,0.00019726,2]
[380193306,1755603054241,-151.0,0.00019726,2]
[380193307,1755603054251,-480.0,0.00019726,2]
[380193308,1755603054260,-480.0,0.00019726,2]
[380193309,1755603054269,-732.73,0.00019726,2]
[380193310,1755603054277,-480.0,0.00019726,2]
[380193311,1755603054287,-480.0,0.00019726,2]
[380193312,1755603054296,-480.0,0.00019726,2]
[380193313,1755603054306,-480.0,0.00019726,2]
[380193314,1755603054315,-151.0,0.00019726,2]
[380193315,1755603054324,-151.0,0.00019726,2]
[380193316,1755603054333,-614.32,0.00019726,2]
[380193317,1755603054343,-480.0,0.00019726,2]
[380193318,1755603054352,-480.0,0.00019726,2]
[380193319,1755603054362,-480.0,0.00019726,2]
[380193320,1755603054371,-480.0,0.00019726,2]
[380193321,1755603054380,-480.0,0.00019726,2]
[380193322,1755603054389,-893.14,0.00019726,2]
[380193323,1755603054398,-1966.75,0.00019726,2]
[380193324,1755603054407,-480.0,0.00019726,2]
[380193325,1755603054415,-460.0,0.00019726,2]
[380193326,1755603054424,-685.74,0.00019726,2]
[380193327,1755603054433,-480.0,0.00019726,2]
[380193328,1755603054442,-480.0,0.00019726,2]
[380193329,1755603054451,-480.0,0.00019726,2]
[380193330,1755603054459,-480.0,0.00019726,2]
[380193331,1755603054468,-480.0,0.00019726,2]
[380193332,1755603054477,-480.0,0.00019726,2]
[380193333,1755603054486,-480.0,0.00019726,2]
[380193334,1755603054495,-480.0,0.00019726,2]
[380193335,1755603054506,-480.0,0.00019726,2]
[380193336,1755603054514,-4074.67,0.00019726,2]
[380193337,1755603054524,-480.0,0.00019726,2]
[380193338,1755603054533,-480.0,0.00019726,2]
[380193339,1755603054542,-480.0,0.00019726,2]
[380193340,1755603054551,-480.0,0.00019726,2]
[380193341,1755603054561,-863.96,0.00019726,2]
[380193342,1755603054569,-480.0,0.00019726,2]
[380193343,1755603054579,-1788.75305572,0.00019726,2]
[380193344,1755603054601,-1374.81438009,0.00019726,2]
[380193345,1755603054613,-11.15256419,0.00019726,2]
[380193346,1755603054622,-480.0,0.00019726,2]
[380193347,1755603054631,-28.97720336,0.00019726,2]
[380193348,1755603054643,-451.02279664,0.00019726,2]
[380193349,1755603054720,-389.88776,0.00019726,2]
[380193350,1755603054729,-389.88776,0.00019726,2]
[380193351,1755603054739,-480.0,0.00019726,2]
[380193352,1755603054748,-558.41303836,0.00019726,2]
[380193353,1755603054757,-878.08,0.00019726,2]
[380193354,1755603054766,-151.0,0.00019726,2]
[380193355,1755603054775,-389.88776,0.00019726,2]
[380193356,1755603054785,-151.0,0.00019726,2]
[380193357,1755603054795,-389.88776,0.00019726,2]
[380193358,1755603054804,-740.357096,0.00019726,2]
[380193359,1755603054813,-740.357096,0.00019726,2]
[380193360,1755603054825,-480.0,0.00019726,2]
[380193361,1755603054834,-740.357096,0.00019726,2]
[380193362,1755603054845,-416.981837,0.00019726,2]
[380193363,1755603054860,-323.375259,0.00019726,2]
[380193364,1755603054871,-151.0,0.00019726,2]
[380193365,1755603054880,-634.61,0.00019726,2]
[380193366,1755603054890,-781.11,0.00019726,2]
[380193367,1755603054899,-151.0,0.00019726,2]
[380193368,1755603054909,-2245.83,0.00019726,2]
[380193369,1755603054919,-151.0,0.00019726,2]
[380193370,1755603054929,-480.0,0.00019726,2]
[380193371,1755603054940,-2990.32,0.00019726,2]
[380193372,1755603054950,-480.0,0.00019726,2]
[380193373,1755603054960,-669.8,0.00019726,2]
[380193374,1755603054970,-1845.68302909,0.00019726,2]
[380193375,1755603054982,-1968.33,0.00019726,2]
[380193376,1755603054993,-4471.22697091,0.00019726,2]
[380193377,1755603055003,-480.0,0.00019726,2]
[380193378,1755603055013,-480.0,0.00019726,2]
[380193379,1755603055023,-480.0,0.00019726,2]
[380193380,1755603055032,-480.0,0.00019726,2]
[380193381,1755603055042,-297.86023083,0.00019726,2]
[380193382,1755603055051,-480.0,0.00019726,2]
[380193383,1755603055060,-151.0,0.00019726,2]
[380193384,1755603055070,-480.0,0.00019726,2]
[380193385,1755603055079,-151.0,0.00019726,2]
[380193386,1755603055088,-480.0,0.00019726,2]
[380193387,1755603055098,-480.0,0.00019726,2]
[380193388,1755603055107,-480.0,0.00019726,2]
[380193389,1755603055116,-560.81,0.00019726,2]
[380193390,1755603055126,-480.0,0.00019726,2]
[380193391,1755603055136,-151.0,0.00019726,2]
[380193392,1755603055145,-151.0,0.00019726,2]
[380193393,1755603055155,-480.0,0.00019726,2]
[380193394,1755603055165,-480.0,0.00019726,2]
[380193395,1755603055174,-480.0,0.00019726,2]
[380193396,1755603055184,-480.0,0.00019726,2]
[380193397,1755603055194,-427.83165768,0.00019726,2]
[380193398,1755603055203,-418.48342058,0.00019726,2]
[380193399,1755603055692,-0.01222903,0.00019178,2]
[380193400,1755603055976,-479.98777097,0.00019178,2]
[380193401,1755603055986,-480.0,0.00019178,2]
[380193402,1755603055996,-196.72028829,0.00019178,2]
[380193403,1755603056008,-283.27971171,0.00019178,2]
[380193404,1755603056017,-480.0,0.00019178,2]
[380193405,1755603056027,-480.0,0.00019178,2]
[380193406,1755603056036,-461.977182,0.00019178,2]
[380193407,1755603056046,-500.0,0.00019178,2]
[380193408,1755603056056,-480.0,0.00019452,2]
[380193409,1755603056065,-480.0,0.00019452,2]
[380193410,1755603056075,-254.854785,0.00019452,2]
[380193411,1755603056084,-65.79078547,0.00019452,2]
[380193412,1755603056442,5000.0,0.00019,2]
[380193413,1755603056485,-480.0,0.00019178,2]
[380193414,1755603056500,-480.0,0.00019178,2]
[380193415,1755603056518,-480.0,0.00019178,2]
[380193416,1755603056539,-414.20921453,0.00019452,2]
[380193417,1755603056555,-480.0,0.00019452,2]
[380193418,1755603056568,-480.0,0.00019452,2]
[380193419,1755603056587,-480.0,0.00019452,2]
[380193420,1755603056602,-61.51657942,0.00019726,2]
[380193421,1755603056618,-996.27,0.00019726,2]
[380193422,1755603056632,-480.0,0.00019726,2]
[380193423,1755603056647,-480.0,0.00019726,2]
[380193424,1755603056661,-480.0,0.00019726,2]
[380193425,1755603056675,-480.0,0.00019726,2]
[380193426,1755603056689,-480.0,0.00019726,2]
[380193427,1755603056704,-480.0,0.00019726,2]
[380193428,1755603056718,-480.0,0.00019726,2]
[380193429,1755603056732,-480.0,0.00019726,2]
[380193430,1755603056747,-480.0,0.00019726,2]
[380193431,1755603056761,-1942.1,0.00019726,2]
[380193432,1755603056775,-480.0,0.00019726,2]
[380193433,1755603056789,-1321.49,0.00019726,2]
[380193434,1755603056803,-480.0,0.00019726,2]
[380193435,1755603056820,-259.308204,0.00019726,2]
[380193436,1755603056835,-6127.55156147,0.00019726,2]
[380193437,1755603056853,-860.23541932,0.00019726,2]
[380193438,1755603057977,-355.7244777,0.00019726,2]
[380193439,1755603057989,-348.52854151,0.00019726,2]
[380193440,1755603057997,-259.308204,0.00019726,2]
[380193441,1755603058007,-259.308204,0.00019726,2]
[380193442,1755603058016,-259.308204,0.00019726,2]
[380193443,1755603058025,-480.0,0.00019726,2]
[380193444,1755603058034,-151.0,0.00019726,2]
[380193445,1755603058043,-275.090301,0.00019726,2]
[380193446,1755603058052,-275.090301,0.00019726,2]
[380193447,1755603058061,-149.21345953,0.00019726,2]
[380193448,1755603061566,5000.0,0.00019,2]
[380193449,1755603077072,1966.38187066,0.00018414,2]
[380193450,1755603077093,20000.0,0.00018414,2]
[380193451,1755603077115,20000.0,0.00018414,2]
[380193452,1755603077139,20000.0,0.00018414,2]
[380193453,1755603077159,20000.0,0.00018414,2]
[380193454,1755603077181,20000.0,0.00018414,2]
[380193455,1755603077204,20000.0,0.00018414,2]
[380193456,1755603077225,3926.31982254,0.00018414,2]
[380193457,1755603079365,5000.0,0.00019,2]
[380193458,1755603088161,5000.0,0.00019,2]
[380193459,1755603096799,5000.0,0.00019,2]
[380193460,1755603104368,590.802875,0.00013699,2]
[380193461,1755603105403,482.87730246,0.00019,2]
[380193462,1755603105424,4517.12269754,0.00019,2]
[380193463,1755603105685,600.0,0.00018356,2]
[380193464,1755603114053,5000.0,0.00019,2]
[380193465,1755603123582,900.89329063,0.00019,2]
[380193466,1755603129773,298.9030564,0.000189,2]
[380193467,1755603131923,5000.0,0.00019,2]
[380193468,1755603148469,3683.08095543,0.00019,2]
[380193469,1755603148493,1316.91904457,0.00019,2]
[380193470,1755603164071,5000.0,0.00019,2]
[380193471,1755603170610,609.26731588,0.00018965,2]
[380193472,1755603180248,5000.0,0.00019,2]
[380193473,1755603195836,5000.0,0.00019,2]
[380193474,1755603197579,219.12769773,0.00018925,2]
[380193475,1755603211434,2854.68594182,0.00019,2]
[380193476,1755603211455,2145.31405818,0.00019,2]
[380193477,1755603228584,5000.0,0.00019,2]
[380193478,1755603244910,5000.0,0.00019,2]
[380193479,1755603260918,5000.0,0.00019,2]
[380193480,1755603277057,2854.68594182,0.00019,2]
[380193481,1755603277080,2145.31405818,0.00019,2]
[380193482,1755603293142,5000.0,0.00019,2]
[380193483,1755603302951,219.12769772,0.00018916,2]
[380193484,1755603303112,3528.862663,0.00018371,2]
[380193485,1755603309058,5000.0,0.00019,2]
[380193486,1755603324581,4106.6955811,0.00019,2]
[380193487,1755603324610,893.3044189,0.00019,2]
[380193488,1755603340892,5000.0,0.00019,2]
[380193489,1755603357293,5000.0,0.00019,2]
[380193490,1755603373131,5000.0,0.00019,2]
[380193491,1755603390587,1276.43359175,0.00019,2]
[380193492,1755603397689,586.337375,0.00018025,2]
[380193493,1755603431470,199.26870426,0.000189,2]
[380193494,1755603464535,1722.37561169,0.00018916,2]
[380193495,1755603511202,322.2802984,0.00018978,2]
[380193496,1755603511226,362.38535093,0.00018978,2]
[380193497,1755603518383,4315.36864721,0.00018925,2]
[380193498,1755603704528,200.0,0.00019,2]
[380193499,1755603733252,150.0,0.000189,2]
[380193500,1755603851568,547.73251948,0.00018978,2]
[380193501,1755603880154,3841.10581179,0.00018924,2]
[380193502,1755603881015,197.94851213,0.00018868,2]
[380193503,1755603908129,1000.0,0.00018024,2]
[380193504,1755604032200,890.9718386,0.00018448,2]
[380193505,1755604032600,445.4859193,0.0001845,2]
[380193506,1755604034847,150.0,0.000189,2]
[380193507,1755604039965,7899.00140056,0.00018023,2]
[380193508,1755604039986,20000.0,0.00018023,2]
[380193509,1755604040006,20000.0,0.00018023,2]
[380193510,1755604040026,11875.01237214,0.00018023,2]
[380193511,1755604056069,5000.0,0.00019,2]
[380193512,1755604072653,3124.98762786,0.00019,2]
[380193513,1755604072674,1875.01237214,0.00019,2]
[380193514,1755604080059,165.82743948,0.00018916,2]
[380193515,1755604089590,5000.0,0.00019,2]
[380193516,1755604105634,5000.0,0.00019,2]
[380193517,1755604123286,5000.0,0.00019,2]
[380193518,1755604139289,2959.16018838,0.00019,2]
[380193519,1755604139314,2040.83981162,0.00019,2]
[380193520,1755604150550,-246.90959975,0.00019015,2]
[380193521,1755604153365,-327.47945711,0.00019015,2]
[380193522,1755604155297,5000.0,0.00019,2]
[380193523,1755604155500,600.0,0.00018312,2]
[380193524,1755604155667,-151.11129436,0.00019015,2]
[380193525,1755604160236,-204.70744097,0.00019015,2]
[380193526,1755604161910,-251.60297646,0.00019015,2]
[380193527,1755604171833,5000.0,0.00019,2]
[380193528,1755604188409,5000.0,0.00019,2]
[380193529,1755604192197,438.18601556,0.00018973,2]
[380193530,1755604205806,1920.97417282,0.00019,2]
[380193531,1755604205830,3079.02582718,0.00019,2]
[380193569,1755604232256,-18.18923135,0.00019015,2]
[380193571,1755604232266,-1181.81076865,0.00019015,2]
[380193572,1755604232275,-300.0,0.00019015,2]
[380193573,1755604232284,-1200.0,0.00019015,2]
[380193574,1755604232293,-300.0,0.00019015,2]
[380193575,1755604232302,-300.0,0.00019015,2]
[380193576,1755604232311,-300.0,0.00019015,2]
[380193577,1755604232320,-786.55,0.00019016,3]
[380193578,1755604232329,-393.28,0.00019016,3]
[380193579,1755604232338,-196.64,0.00019016,3]
[380193580,1755604232347,-589.92,0.00019016,3]
[380193582,1755604232356,-231.66,0.00019016,3]
[380193584,1755604232365,-694.99,0.00019016,3]
[380193585,1755604232374,-6397.67183571,0.00019019,2]
[380193775,1755604238143,-43602.32816429,0.00019019,2]
[380193776,1755604238154,-21534.00000002,0.00019021,2]
[380193777,1755604238163,-503.22309627,0.00019023,2]
[380193778,1755604238172,-362.61121636,0.00019023,2]
[380193779,1755604238181,-500.0,0.00019023,2]
[380193780,1755604238190,-629.02486664,0.00019023,2]
[380193781,1755604238200,-251.09246144,0.00019023,2]
[380193782,1755604238212,-629.02486664,0.00019023,2]
[380193783,1755604238223,-629.02486664,0.00019023,2]
[380193784,1755604238233,-629.02486664,0.00019023,2]
[380193785,1755604238242,-629.02486664,0.00019023,2]
[380193786,1755604238253,-500.0,0.00019023,2]
[380193787,1755604238262,-629.02486664,0.00019023,2]
[380193788,1755604238271,-629.02486664,0.00019023,2]
[380193789,1755604238281,-538.27018698,0.00019023,2]
[380193790,1755604238372,-629.02486664,0.00019023,2]
[380193791,1755604238402,-629.02486664,0.00019023,2]
[380193792,1755604238412,-629.02486664,0.00019023,2]
[380193793,1755604238421,-629.02486664,0.00019023,2]
[380193794,1755604238430,-629.02486664,0.00019023,2]
[380193795,1755604238439,-629.02486664,0.00019023,2]
[380193796,1755604238449,-629.02486664,0.00019023,2]
[380193797,1755604238458,-629.02486664,0.00019023,2]
[380193798,1755604238467,-629.02486664,0.00019023,2]
[380193799,1755604238476,-629.02486664,0.00019023,2]
[380193800,1755604238485,-629.02486664,0.00019023,2]
[380193801,1755604238494,-629.02486664,0.00019023,2]
[380193802,1755604238503,-629.02486664,0.00019023,2]
[380193803,1755604238513,-629.02486664,0.00019023,2]
[380193804,1755604238522,-629.02486664,0.00019023,2]
[380193805,1755604238531,-629.02486664,0.00019023,2]
[380193806,1755604238540,-629.02486664,0.00019023,2]
[380193807,1755604238550,-629.02486664,0.00019023,2]
[380193808,1755604238559,-629.02486664,0.00019023,2]
[380193809,1755604238568,-629.02486664,0.00019023,2]
[380193810,1755604238577,-629.02486664,0.00019023,2]
[380193811,1755604238587,-629.02486664,0.00019023,2]
[380193812,1755604238596,-629.02486664,0.00019023,2]
[380193813,1755604238606,-629.02486664,0.00019023,2]
[380193814,1755604238615,-629.02486664,0.00019023,2]
[380193815,1755604238624,-629.02486664,0.00019023,2]
[380193816,1755604238633,-629.02486664,0.00019023,2]
[380193817,1755604238643,-629.02486664,0.00019023,2]
[380193818,1755604238652,-629.02486664,0.00019023,2]
[380193819,1755604238661,-629.02486664,0.00019023,2]
[380193820,1755604238670,-629.02486664,0.00019023,2]
[380193821,1755604238679,-629.02486664,0.00019023,2]
[380193822,1755604238689,-629.02486664,0.00019023,2]
[380193823,1755604238701,-629.02486664,0.00019023,2]
[380193824,1755604238711,-629.02486664,0.00019023,2]
[380193825,1755604238721,-629.02486664,0.00019023,2]
[380193826,1755604238730,-629.02486664,0.00019023,2]
[380193827,1755604238740,-629.02486664,0.00019023,2]
[380193828,1755604238750,-629.02486664,0.00019023,2]
[380193829,1755604238760,-629.02486664,0.00019023,2]
[380193830,1755604238769,-629.02486664,0.00019023,2]
[380193831,1755604238779,-629.02486664,0.00019023,2]
[380193832,1755604238788,-629.02486664,0.00019023,2]
[380193833,1755604238797,-629.02486664,0.00019023,2]
[380193834,1755604238806,-629.02486664,0.00019023,2]
[380193835,1755604238815,-629.02486664,0.00019023,2]
[380193836,1755604238825,-629.02486664,0.00019023,2]
[380193837,1755604238835,-629.02486664,0.00019023,2]
[380193838,1755604238845,-629.02486664,0.00019023,2]
[380193839,1755604238854,-629.02486664,0.00019023,2]
[380193840,1755604238863,-629.02486664,0.00019023,2]
[380193841,1755604238872,-629.02486664,0.00019023,2]
[380193842,1755604238882,-629.02486664,0.00019023,2]
[380193843,1755604238892,-629.02486664,0.00019023,2]
[380193844,1755604238902,-629.02486664,0.00019023,2]
[380193845,1755604238911,-629.02486664,0.00019023,2]
[380193846,1755604238921,-629.02486664,0.00019023,2]
[380193847,1755604238930,-629.02486664,0.00019023,2]
[380193848,1755604238940,-500.0,0.00019025,2]
[380193849,1755604238949,-151.0,0.00019025,2]
[380193850,1755604238959,-151.0,0.00019025,2]
[380193851,1755604238968,-151.0,0.00019025,2]
[380193852,1755604238978,-151.0,0.00019025,2]
[380193853,1755604238987,-151.0,0.00019025,2]
[380193854,1755604238997,-151.0,0.00019025,2]
[380193855,1755604239006,-500.0,0.00019025,2]
[380193856,1755604239016,-500.0,0.00019025,2]
[380193857,1755604239025,-151.0,0.00019025,2]
[380193858,1755604239035,-153.08576219,0.00019025,2]
[380193859,1755604239043,-500.0,0.00019025,2]
[380193860,1755604239053,-151.0,0.00019025,2]
[380193861,1755604239062,-151.30909357,0.00019025,2]
[380193862,1755604239071,-500.0,0.00019025,2]
[380193863,1755604239081,-151.0,0.00019025,2]
[380193864,1755604239090,-151.0,0.00019025,2]
[380193865,1755604239099,-151.0,0.00019025,2]
[380193866,1755604239108,-151.0,0.00019025,2]
[380193867,1755604239117,-500.0,0.00019025,2]
[380193868,1755604239126,-151.0,0.00019025,2]
[380193869,1755604239135,-500.0,0.00019025,2]
[380193870,1755604239145,-151.0,0.00019025,2]
[380193871,1755604239156,-151.0,0.00019025,2]
[380193872,1755604239165,-643.0,0.00019025,2]
[380193873,1755604239175,-151.0,0.00019025,2]
[380193874,1755604239183,-151.0,0.00019025,2]
[380193875,1755604239193,-500.0,0.00019025,2]
[380193876,1755604239203,-500.0,0.00019025,2]
[380193877,1755604239213,-151.0,0.00019025,2]
[380193878,1755604239223,-500.0,0.00019025,2]
[380193879,1755604239232,-274.61915624,0.00019025,2]
[380193880,1755604239241,-151.0,0.00019025,2]
[380193881,1755604239251,-151.0,0.00019025,2]
[380193882,1755604239260,-151.0,0.00019025,2]
[380193883,1755604239270,-500.0,0.00019025,2]
[380193884,1755604239279,-500.0,0.00019025,2]
[380193885,1755604239288,-500.0,0.00019025,2]
[380193886,1755604239299,-500.0,0.00019025,2]
[380193887,1755604239309,-500.0,0.00019025,2]
[380193888,1755604239319,-151.0,0.00019025,2]
[380193889,1755604239328,-151.0,0.00019025,2]
[380193890,1755604239337,-151.41735249,0.00019025,2]
[380193891,1755604239347,-151.0,0.00019025,2]
[380193892,1755604239356,-93180.26898375,0.00019026,2]
[380193893,1755604240265,-1606.97244131,0.00019026,2]
[380193894,1755604240277,-4448.095578,0.00019026,2]
[380193942,1755604243333,-12081.000007,0.00019026,2]
[380193944,1755604243345,-345.39491445,0.00019026,2]
[380193964,1755604246340,-11359.70949697,0.00019026,2]
[380193966,1755604246350,-438.18601556,0.0001903,2]
[380193968,1755604246360,-5067.55102258,0.00019073,2]
[380193970,1755604246369,-3900.0,0.00019078,2]
[380193972,1755604246378,-1000.0,0.00019078,2]
[380193974,1755604246388,-18120.93412827,0.00019078,2]
[380193976,1755604246398,-438.18601556,0.00019086,2]
[380193978,1755604246407,-1996.61253595,0.00019134,2]
[380193980,1755604246416,-438.18601556,0.00019143,2]
[380193982,1755604246426,-1000.0,0.00019166,2]
[380193984,1755604246436,-1114.0,0.00019166,2]
[380193985,1755604246445,-17842.522448,0.00019166,2]
[380193986,1755604246455,-151.0,0.00019166,2]
[380193987,1755604246463,-500.0,0.00019173,2]
[380193988,1755604246473,-500.61184023,0.00019173,2]
[380193989,1755604246482,-500.0,0.00019173,2]
[380193990,1755604246491,-500.0,0.00019173,2]
[380193991,1755604246500,-500.0,0.00019173,2]
[380193992,1755604246509,-500.0,0.00019173,2]
[380193993,1755604246518,-500.0,0.00019173,2]
[380193994,1755604246527,-500.0,0.00019173,2]
[380193995,1755604246536,-500.0,0.00019173,2]
[380193996,1755604246545,-500.0,0.00019173,2]
[380193997,1755604246555,-500.0,0.00019173,2]
[380193998,1755604246564,-500.0,0.00019173,2]
[380193999,1755604246574,-500.0,0.00019173,2]
[380194000,1755604246583,-500.0,0.00019173,2]
[380194001,1755604246592,-500.0,0.00019173,2]
[380194002,1755604246601,-500.0,0.00019173,2]
[380194003,1755604246611,-500.0,0.00019173,2]
[380194004,1755604246620,-500.0,0.00019173,2]
[380194005,1755604246629,-500.0,0.00019173,2]
[380194006,1755604246639,-500.0,0.00019173,2]
[380194007,1755604246649,-500.0,0.00019173,2]
[380194008,1755604246658,-500.0,0.00019173,2]
[380194009,1755604246667,-500.0,0.00019173,2]
[380194010,1755604246677,-382.65037459,0.00019177,2]
[380194011,1755604246687,-480.0,0.00019178,2]
[380194012,1755604246696,-480.0,0.00019178,2]
[380194013,1755604246706,-480.0,0.00019178,2]
[380194014,1755604246715,-480.0,0.00019178,2]
[380194015,1755604246724,-460.0,0.00019178,2]
[380194016,1755604246733,-480.0,0.00019178,2]
[380194017,1755604246742,-480.61182835,0.00019178,2]
[380194018,1755604246751,-465.17456108,0.00019178,2]
[380194019,1755604246761,-480.54429768,0.00019178,2]
[380194020,1755604246770,-480.0,0.00019178,2]
[380194021,1755604246779,-460.94801275,0.00019178,2]
[380194022,1755604246788,-480.0,0.00019178,2]
[380194023,1755604246797,-480.0,0.00019178,2]
[380194024,1755604246807,-481.31023006,0.00019178,2]
[380194025,1755604246816,-480.0,0.00019178,2]
[380194026,1755604246826,-480.0,0.00019178,2]
[380194027,1755604246835,-480.31330389,0.00019178,2]
[380194028,1755604246845,-480.0,0.00019178,2]
[380194029,1755604246855,-460.40971989,0.00019178,2]
[380194030,1755604246866,-462.26441159,0.00019178,2]
[380194031,1755604246877,-480.0,0.00019178,2]
[380194032,1755604246888,-480.0,0.00019178,2]
[380194033,1755604246898,-480.0,0.00019178,2]
[380194034,1755604246908,-480.43415588,0.00019178,2]
[380194035,1755604246917,-481.01316962,0.00019178,2]
[380194036,1755604246928,-480.0,0.00019178,2]